bitfinex/quotes_BTCUSD_20250123
["timestamp","ask_amount","ask_price","bid_price","bid_amount"]
[1737597772540,0.46091523,102700.0,102690.0,0.25788197]
[1737597772937,0.41091523,102700.0,102690.0,0.25788197]
[1737597773183,0.38791523,102700.0,102690.0,2.04848197]
[1737597773358,0.38791523,102700.0,102690.0,1.43928197]
[1737597773781,0.38791523,102700.0,102690.0,0.83338197]
[1737597774399,0.41091523,102700.0,102690.0,0.25788197]
[1737597776495,0.41091523,102700.0,102690.0,0.24818311]
[1737597777395,0.42061744,102700.0,102690.0,0.24818311]
[1737597778638,1.40628744,102700.0,102690.0,0.00080311]
[1737597778895,1.45628744,102700.0,102690.0,0.00080311]
[1737597779019,1.40628744,102700.0,102690.0,0.00080311]
[1737597780320,1.45628744,102700.0,102690.0,0.00080311]
[1737597781035,1.45628744,102700.0,102690.0,0.09818311]
[1737597781245,1.33891744,102700.0,102690.0,0.09818311]
[1737597781449,1.43628744,102700.0,102690.0,0.09818311]
[1737597782076,1.33891744,102700.0,102690.0,0.09818311]
[1737597782756,1.34823744,102700.0,102690.0,0.09818311]
[1737597783534,1.44560744,102700.0,102690.0,0.09818311]
[1737597783744,1.46560744,102700.0,102690.0,0.00080311]
[1737597784171,1.41560744,102700.0,102690.0,0.00080311]
[1737597784371,0.52730744,102700.0,102690.0,0.00080311]
[1737597784573,0.60900744,102700.0,102690.0,0.00080311]
[1737597784729,0.65860744,102700.0,102690.0,0.00080311]
[1737597785611,0.80860744,102700.0,102690.0,0.00080311]
[1737597790354,0.79928744,102700.0,102690.0,0.00080311]
[1737597790560,0.80860744,102700.0,102690.0,0.00080311]
[1737597791063,0.65860744,102700.0,102690.0,0.00080311]
[1737597792949,0.57430744,102700.0,102690.0,0.00080311]
[1737597793158,0.44761744,102700.0,102690.0,0.09818311]
[1737597793366,0.39761744,102700.0,102690.0,0.09818311]
[1737597793584,0.44761744,102700.0,102690.0,0.09818311]
[1737597793786,0.58798744,102700.0,102690.0,0.00080311]
[1737597793963,0.53798744,102700.0,102690.0,0.00080311]
[1737597794520,0.44061744,102700.0,102690.0,0.09818311]
[1737597794721,0.53798744,102700.0,102690.0,0.09818311]
[1737597794942,0.44061744,102700.0,102690.0,0.09818311]
[1737597795092,0.53798744,102700.0,102690.0,0.00080311]
[1737597797226,0.53798744,102700.0,102690.0,0.09818311]
[1737597797446,0.42061744,102700.0,102690.0,0.09818311]
[1737597797623,0.39761744,102700.0,102690.0,0.24818311]
[1737597797824,0.40693744,102700.0,102690.0,0.29598311]
[1737597798255,0.42993744,102700.0,102690.0,0.29598311]
[1737597800125,0.42993744,102700.0,102690.0,0.30568197]
[1737597800769,0.42993744,102700.0,102690.0,1.36098197]
[1737597800770,0.41091523,102700.0,102690.0,1.36098197]
[1737597800960,0.41091523,102700.0,102690.0,1.02348197]
[1737597801904,0.41091523,102700.0,102690.0,0.40898197]
[1737597802437,0.41091523,102700.0,102690.0,0.30568197]
[1737597803268,0.41091523,102700.0,102690.0,0.24818311]
[1737597803471,0.57828523,102700.0,102690.0,0.00080311]
[1737597803825,0.41091523,102700.0,102690.0,0.09818311]
[1737597804020,0.55828523,102700.0,102690.0,0.09818311]
[1737597804225,0.38791523,102700.0,102690.0,0.32658311]
[1737597805260,0.41091523,102700.0,102690.0,0.32658311]
[1737597805733,0.41091523,102700.0,102690.0,0.24818311]
[1737597805916,0.46091523,102700.0,102690.0,0.09818311]
[1737597806161,0.57828523,102700.0,102690.0,0.00080311]
[1737597806742,0.52828523,102700.0,102690.0,0.00080311]
[1737597808076,0.62563252,102700.0,102690.0,0.00080311]
[1737597808282,0.50828523,102700.0,102690.0,0.00080311]
[1737597809101,0.51784523,102700.0,102690.0,0.00080311]
[1737597810257,0.53694898,102700.0,102690.0,0.00080311]
[1737597810462,0.61424898,102700.0,102690.0,0.00080311]
[1737597812001,0.70595158,102700.0,102690.0,0.00080311]
[1737597812204,0.140389,102680.0,102670.0,0.00029904]
[1737597812406,0.52952189,102680.0,102670.0,0.00029904]
[1737597812522,0.52830423,102680.0,102670.0,0.00029904]
[1737597812736,0.63080423,102680.0,102670.0,1e-08]
[1737597813139,0.63080423,102680.0,102660.0,0.01]
[1737597813140,0.120399,102670.0,102660.0,0.01]
[1737597813387,0.50953216,102670.0,102660.0,0.01]
[1737597813707,0.50831423,102670.0,102660.0,0.01]
[1737597815727,0.57175835,102670.0,102660.0,0.01]
[1737597816138,0.199508,102660.0,102650.0,0.00029904]
[1737597816351,0.58864127,102660.0,102650.0,0.00029904]
[1737597816525,0.58742323,102660.0,102650.0,0.00029904]
[1737597817324,0.58742323,102660.0,102650.0,1e-08]
[1737597817518,0.58742323,102660.0,102650.0,4.918e-05]
[1737597818182,0.59722951,102660.0,102650.0,4.918e-05]
[1737597819590,0.74722951,102660.0,102650.0,4.918e-05]
[1737597820025,0.76810218,102660.0,102650.0,4.918e-05]
[1737597820226,0.74722951,102660.0,102650.0,4.918e-05]
[1737597820841,0.59722951,102660.0,102650.0,4.918e-05]
[1737597821035,0.60678951,102660.0,102650.0,4.918e-05]
[1737597821236,0.54768951,102660.0,102650.0,4.918e-05]
[1737597821581,0.53812951,102660.0,102650.0,4.918e-05]
[1737597821783,0.54768951,102660.0,102650.0,4.918e-05]
[1737597822001,0.53812951,102660.0,102650.0,4.918e-05]
[1737597822210,0.6950368,102660.0,102650.0,4.918e-05]
[1737597822415,0.54768951,102660.0,102650.0,4.918e-05]
[1737597822615,0.57768951,102660.0,102650.0,4.918e-05]
[1737597822825,0.59768951,102660.0,102650.0,4.918e-05]
[1737597823051,1.41598951,102660.0,102650.0,4.918e-05]
[1737597823502,1.26602151,102660.0,102650.0,0.09746718]
[1737597823713,1.27558151,102660.0,102650.0,0.09746718]
[1737597823841,1.32558151,102660.0,102650.0,0.09746718]
[1737597824043,1.34858151,102660.0,102650.0,0.09746718]
[1737597824470,1.44598951,102660.0,102650.0,0.09746718]
[1737597825549,1.43642951,102660.0,102650.0,0.09746718]
[1737597825697,1.44598951,102660.0,102650.0,0.09746718]
[1737597826210,1.44598951,102660.0,102650.0,4.918e-05]
[1737597826411,1.46598951,102660.0,102650.0,4.918e-05]
[1737597827872,0.023,102650.0,102640.0,0.29731418]
[1737597828082,0.5095511,102650.0,102640.0,0.29736381]
[1737597828311,0.50833323,102650.0,102640.0,0.29736381]
[1737597829135,0.50833323,102650.0,102640.0,0.10252181]
[1737597829386,0.55833323,102650.0,102640.0,0.00509881]
[1737597829549,0.59727223,102650.0,102640.0,0.00509881]
[1737597830156,0.06840119,102640.0,102630.0,0.09772904]
[1737597830440,0.60462046,102640.0,102630.0,0.09787841]
[1737597830601,0.60340247,102640.0,102630.0,0.09787841]
[1737597831579,0.60340247,102640.0,102630.0,0.00044841]
[1737597832404,0.60340247,102640.0,102620.0,0.76008004]
[1737597832405,0.5861,102620.0,102610.0,0.00029946]
[1737597832611,0.80389329,102620.0,102610.0,0.00034927]
[1737597832786,1.06446123,102620.0,102610.0,0.00034927]
[1737597832994,1.14356123,102620.0,102610.0,0.00034927]
[1737597833132,1.60040673,102610.0,102600.0,0.00029925]
[1737597833338,1.60040673,102610.0,102600.0,0.00042527]
[1737597833339,1.97764196,102610.0,102600.0,0.00042527]
[1737597835394,1.97764196,102610.0,102600.0,0.09789027]
[1737597835395,1.80718596,102610.0,102600.0,0.09789027]
[1737597835578,1.90464196,102610.0,102600.0,0.09789027]
[1737597836196,1.95464196,102610.0,102600.0,0.09789027]
[1737597836354,1.90464196,102610.0,102600.0,0.09789027]
[1737597836564,1.98742743,102610.0,102600.0,0.00042527]
[1737597836985,1.98742743,102610.0,102600.0,0.09789027]
[1737597837852,1.98742743,102610.0,102580.0,0.00029946]
[1737597837853,0.190475,102590.0,102580.0,0.00029946]
[1737597838065,0.57960831,102590.0,102580.0,0.00044882]
[1737597838294,0.57839023,102590.0,102580.0,0.00044882]
[1737597838495,0.65839023,102590.0,102580.0,0.00044882]
[1737597839089,0.83254344,102590.0,102580.0,0.00044882]
[1737597839290,0.73609023,102590.0,102580.0,0.00044882]
[1737597840282,0.117503,102560.0,102550.0,0.00029925]
[1737597840494,0.64665631,102560.0,102550.0,0.00080444]
[1737597840721,0.59543823,102560.0,102550.0,0.00080444]
[1737597841228,0.69278552,102560.0,102550.0,0.00080444]
[1737597841433,0.59933623,102560.0,102550.0,0.00080444]
[1737597841815,0.74933623,102560.0,102550.0,0.00080444]
[1737597842223,0.79503623,102560.0,102550.0,0.00080444]
[1737597843752,0.79503623,102560.0,102540.0,1e-08]
[1737597843753,0.120513,102550.0,102540.0,1e-08]
[1737597843924,0.120522,102540.0,102530.0,0.00025926]
[1737597844129,0.120522,102540.0,102530.0,0.00040859]
[1737597844130,0.50843723,102540.0,102530.0,0.00040859]
[1737597844311,0.75578452,102540.0,102530.0,0.00040859]
[1737597844512,0.65843723,102540.0,102530.0,0.00040859]
[1737597844735,0.140532,102530.0,102520.0,0.00029925]
[1737597844939,0.53776723,102530.0,102520.0,0.00041483]
[1737597845139,0.58776723,102530.0,102520.0,0.00041483]
[1737597845912,0.41091523,102530.0,102520.0,0.09795583]
[1737597846123,0.51776723,102530.0,102520.0,0.09795583]
[1737597846326,0.41091523,102530.0,102520.0,0.09795583]
[1737597846471,0.39723523,102530.0,102520.0,0.09795583]
[1737597846872,0.42023523,102530.0,102520.0,0.09795583]
[1737597847793,0.38791523,102530.0,102520.0,0.24795583]
[1737597847999,0.39723523,102530.0,102520.0,0.24795583]
[1737597848200,0.39723523,102530.0,102520.0,0.33115583]
[1737597848403,0.38791523,102530.0,102520.0,4.87485583]
[1737597848620,0.38791523,102530.0,102520.0,1.67225583]
[1737597849240,0.38791523,102530.0,102520.0,1.71725583]
[1737597849435,0.38791523,102530.0,102520.0,1.73725583]
[1737597849555,0.29056794,102530.0,102520.0,1.73725583]
[1737597849757,0.08436794,102530.0,102520.0,1.67875583]
[1737597849965,0.013218,102560.0,102550.0,0.247513]
[1737597849966,0.00932,102560.0,102550.0,0.247513]
[1737597850182,0.09734729,102560.0,102550.0,2.99521186]
[1737597850701,0.38987729,102560.0,102550.0,2.99521186]
[1737597850898,0.42219729,102560.0,102550.0,0.097513]
[1737597852594,0.42219729,102560.0,102540.0,0.585112]
[1737597852595,0.120514,102550.0,102540.0,0.097522]
[1737597852794,0.41287729,102550.0,102540.0,0.097522]
[1737597853436,0.51039029,102550.0,102540.0,0.097522]
[1737597853664,0.70541729,102550.0,102530.0,0.292578]
[1737597853857,0.12034729,102540.0,102530.0,0.292578]
[1737597854074,0.41287729,102540.0,102530.0,0.442578]
[1737597855042,0.79287729,102540.0,102530.0,0.097532]
[1737597855439,0.81587729,102540.0,102530.0,0.097532]
[1737597855552,0.73557729,102540.0,102530.0,0.097532]
[1737597857372,0.83309929,102540.0,102530.0,0.097532]
[1737597857561,0.120532,102530.0,102520.0,0.00041483]
[1737597857771,0.66192737,102530.0,102520.0,0.00041483]
[1737597857974,0.565,102510.0,102500.0,0.3082279]
[1737597858184,0.96419729,102510.0,102500.0,0.45829318]
[1737597858396,0.96419729,102510.0,102500.0,0.30829318]
[1737597858600,0.94119729,102510.0,102500.0,0.30829318]
[1737597858806,0.94119729,102510.0,102500.0,4.85669318]
[1737597859007,0.93187729,102510.0,102500.0,4.74459318]
[1737597859414,0.93187729,102510.0,102500.0,4.77429204]
[1737597859415,0.38987729,102510.0,102500.0,4.77429204]
[1737597859882,0.29253,102510.0,102500.0,4.77429204]
[1737597860261,0.29253,102510.0,102500.0,4.76459318]
[1737597860464,0.29253,102510.0,102500.0,0.47829318]
[1737597860668,0.29253,102510.0,102500.0,5.52829318]
[1737597861628,0.29253,102510.0,102500.0,4.49759318]
[1737597862090,0.29253,102510.0,102500.0,3.36759318]
[1737597862295,0.38987729,102510.0,102500.0,3.02259318]
[1737597862450,0.38987729,102510.0,102500.0,0.70859318]
[1737597862657,0.38987729,102510.0,102500.0,0.51348418]
[1737597863060,0.38987729,102510.0,102500.0,0.52336998]
[1737597864171,0.38987729,102510.0,102500.0,0.42581398]
[1737597864375,1.12982829,102510.0,102500.0,0.01562818]
[1737597866640,1.12982829,102510.0,102500.0,0.02470619]
[1737597867433,1.12982829,102510.0,102500.0,0.02484899]
[1737597867632,0.58782829,102510.0,102500.0,0.02484899]
[1737597868645,0.60715821,102510.0,102500.0,0.02484899]
[1737597869423,0.62715821,102510.0,102500.0,0.02484899]
[1737597870286,0.09758,102480.0,102470.0,0.0001425]
[1737597870488,0.59011537,102480.0,102470.0,0.00020779]
[1737597870701,0.58889729,102480.0,102470.0,0.00020779]
[1737597871331,0.89364458,102480.0,102470.0,0.00020779]
[1737597871548,0.117608,102450.0,102440.0,0.01952815]
[1737597871753,0.117608,102450.0,102440.0,6.3e-07]
[1737597871754,0.70810337,102450.0,102440.0,6.3e-07]
[1737597871962,0.147627,102430.0,102420.0,0.0001426]
[1737597872170,0.175046,102410.0,102400.0,0.0155629]
[1737597872380,0.175046,102410.0,102360.0,0.50891812]
[1737597872381,0.247084,102370.0,102360.0,0.50891812]
[1737597872599,0.63696129,102370.0,102360.0,0.50891812]
[1737597873012,0.41287729,102370.0,102360.0,0.50891812]
[1737597873220,0.45416502,102370.0,102360.0,0.50891812]
[1737597873422,0.45416502,102370.0,102360.0,0.35710199]
[1737597873423,0.54919729,102370.0,102360.0,0.35710199]
[1737597873624,0.56970187,102370.0,102360.0,0.24629154]
[1737597873834,0.56970187,102370.0,102360.0,0.34398554]
[1737597873835,0.39038187,102370.0,102360.0,0.34398554]
[1737597874040,0.39038187,102370.0,102360.0,0.24629154]
[1737597874250,0.39038187,102370.0,102360.0,0.34398554]
[1737597874458,0.39038187,102370.0,102360.0,2.27768554]
[1737597874659,0.29303458,102370.0,102360.0,5.61398554]
[1737597874866,0.0104,102400.0,102390.0,0.247665]
[1737597875116,0.09734729,102400.0,102390.0,0.247665]
[1737597875314,0.09734729,102400.0,102390.0,2.518781]
[1737597875471,0.09734729,102400.0,102390.0,0.765281]
[1737597875674,0.09734729,102400.0,102390.0,0.658981]
[1737597875876,0.39032729,102400.0,102390.0,0.45270242]
[1737597876075,0.39032729,102400.0,102390.0,1.25080242]
[1737597876280,0.29298,102400.0,102390.0,1.27080242]
[1737597876496,0.28298,102400.0,102390.0,1.27080242]
[1737597876712,0.28298,102400.0,102390.0,1.34808674]
[1737597876949,0.029125,102400.0,102390.0,1.49584976]
[1737597877082,0.28854729,102480.0,102430.0,0.247627]
[1737597877083,0.0104,102440.0,102430.0,0.247627]
[1737597877272,0.10774729,102440.0,102430.0,0.25734842]
[1737597877717,0.39021729,102440.0,102430.0,0.25734842]
[1737597878339,0.39021729,102440.0,102430.0,1.39889632]
[1737597878905,0.39021729,102440.0,102430.0,1.41828197]
[1737597880319,0.29287,102440.0,102430.0,1.43828197]
[1737597880536,0.273346,102440.0,102430.0,1.48828197]
[1737597880766,0.19525,102440.0,102430.0,1.48828197]
[1737597880934,0.18948721,102440.0,102430.0,1.48828197]
[1737597881135,0.09186721,102440.0,102430.0,1.58562926]
[1737597881338,0.01088,102480.0,102470.0,0.247589]
[1737597881538,0.40097729,102480.0,102470.0,0.27669607]
[1737597881807,0.39009729,102480.0,102470.0,1.17159607]
[1737597881947,0.39009729,102480.0,102470.0,1.22159607]
[1737597882144,0.39009729,102480.0,102470.0,1.17159607]
[1737597882386,0.39009729,102480.0,102470.0,0.27669607]
[1737597882614,0.39060249,102480.0,102470.0,0.12669607]
[1737597884248,0.39060249,102480.0,102470.0,0.27767185]
[1737597884452,0.39060249,102480.0,102470.0,0.64219607]
[1737597885046,0.39060249,102480.0,102470.0,0.62219607]
[1737597885303,0.39060249,102480.0,102470.0,0.27669607]
[1737597886130,0.39060249,102480.0,102470.0,0.12669607]
[1737597886333,0.94348249,102480.0,102470.0,0.00972142]
[1737597886511,0.94348249,102480.0,102470.0,0.10731042]
[1737597887295,0.52206249,102480.0,102470.0,0.00972142]
[1737597887500,0.65856941,102480.0,102470.0,0.00972142]
[1737597887701,0.833668,102470.0,102450.0,0.097606]
[1737597888029,0.09734729,102460.0,102450.0,0.10732742]
[1737597888234,0.39009729,102460.0,102450.0,0.10732742]
[1737597888452,0.39009729,102460.0,102450.0,0.27671307]
[1737597888897,0.39009729,102460.0,102450.0,2.18481307]
[1737597889513,0.39009729,102460.0,102450.0,2.16481307]
[1737597889723,0.39009729,102460.0,102450.0,2.18481307]
[1737597891702,0.21467,102460.0,102450.0,2.23481307]
[1737597891907,0.19515,102460.0,102450.0,2.23481307]
[1737597892452,0.19515,102460.0,102450.0,2.18481307]
[1737597892668,0.29249729,102460.0,102450.0,1.02301307]
[1737597893286,0.29249729,102460.0,102450.0,1.04301307]
[1737597893668,0.17563,102460.0,102450.0,1.10286532]
[1737597894376,0.09755,102460.0,102450.0,1.10286532]
[1737597894777,0.07803,102460.0,102450.0,1.10286532]
[1737597894978,0.05851,102460.0,102450.0,1.10286532]
[1737597895205,0.00080424,102480.0,102470.0,0.097589]
[1737597895408,0.09815153,102480.0,102470.0,3.1836717]
[1737597895608,0.0890801,102510.0,102480.0,0.22]
[1737597895780,0.0890801,102510.0,102500.0,0.24756]
[1737597895981,0.47909739,102510.0,102500.0,0.25728142]
[1737597896901,0.46821739,102510.0,102500.0,0.25728142]
[1737597897792,1.01021739,102510.0,102500.0,0.10728142]
[1737597897986,1.11864839,102510.0,102500.0,0.00972142]
[1737597898327,1.02109739,102510.0,102500.0,0.10728142]
[1737597898945,0.59964839,102510.0,102500.0,0.00972142]
[1737597899149,0.61964839,102510.0,102500.0,0.00972142]
[1737597899501,0.57664839,102510.0,102500.0,0.00972142]
[1737597899704,0.57664839,102510.0,102500.0,0.10728142]
[1737597899705,0.46821739,102510.0,102500.0,0.10728142]
[1737597899908,0.47909739,102510.0,102500.0,0.10728142]
[1737597900511,0.59964839,102510.0,102500.0,0.00972142]
[1737597900711,0.64964839,102510.0,102500.0,0.00972142]
[1737597900915,0.52779739,102510.0,102480.0,0.0001479]
[1737597901157,0.52779739,102510.0,102480.0,0.2928659]
[1737597901158,0.09734729,102490.0,102480.0,0.2928659]
[1737597901366,0.39001729,102490.0,102480.0,0.2928659]
[1737597901559,0.39001729,102490.0,102480.0,0.46225155]
[1737597901793,0.39001729,102490.0,102480.0,2.61205155]
[1737597901921,0.39001729,102490.0,102480.0,0.79795155]
[1737597902122,0.39001729,102490.0,102480.0,0.46225155]
[1737597902343,0.39001729,102490.0,102480.0,2.44835155]
[1737597902707,0.0003001,102510.0,102500.0,0.11756]
[1737597902910,0.0003001,102510.0,102500.0,5.18792092]
[1737597903108,1e-08,102510.0,102500.0,5.28664565]
[1737597903322,0.19512001,102510.0,102500.0,0.33694565]
[1737597903479,0.19512001,102510.0,102500.0,0.36422997]
[1737597903882,0.19512001,102510.0,102500.0,0.46157726]
[1737597904096,0.0003001,102550.0,102540.0,0.267522]
[1737597904443,0.2928501,102550.0,102540.0,5.36419197]
[1737597904843,0.2538441,102550.0,102540.0,5.4416077]
[1737597905054,0.2148381,102550.0,102540.0,5.2120077]
[1737597905297,0.2148381,102550.0,102540.0,5.15730765]
[1737597905493,0.2148381,102550.0,102540.0,5.15745555]
[1737597905691,0.2148381,102550.0,102540.0,3.43225555]
[1737597906557,0.31218539,102550.0,102540.0,0.87585555]
[1737597907107,0.31218539,102550.0,102540.0,0.26705555]
[1737597907310,0.31218539,102550.0,102540.0,4.35975555]
[1737597907675,0.2148381,102550.0,102540.0,4.37975555]
[1737597908918,0.2148381,102550.0,102540.0,0.28705555]
[1737597909121,0.2148381,102550.0,102540.0,5.38705555]
[1737597909551,0.1758321,102550.0,102540.0,5.38705555]
[1737597909783,0.00029968,102580.0,102560.0,0.02]
[1737597909955,0.00029968,102580.0,102570.0,5.31846872]
[1737597910169,0.00029968,102580.0,102570.0,5.317494]
[1737597910409,0.29276968,102580.0,102570.0,5.317494]
[1737597910805,0.29276968,102580.0,102570.0,4.106094]
[1737597911149,0.23427868,102580.0,102570.0,4.106094]
[1737597911350,0.19528468,102580.0,102570.0,4.25814134]
[1737597911593,0.0003001,102590.0,102580.0,0.07]
[1737597911792,0.0003001,102590.0,102580.0,5.41525981]
[1737597911990,0.0003001,102590.0,102580.0,5.4415697]
[1737597911991,0.2927401,102590.0,102580.0,5.4415697]
[1737597912215,0.2927401,102590.0,102580.0,5.56191699]
[1737597912216,0.19137613,102590.0,102580.0,5.56191699]
[1737597912411,0.18887867,102590.0,102580.0,5.56191699]
[1737597912611,0.15843991,102590.0,102580.0,5.53450126]
[1737597912787,0.15864563,102590.0,102580.0,5.55943044]
[1737597912992,0.11935553,102590.0,102580.0,5.53933041]
[1737597913194,0.11935553,102590.0,102580.0,4.45151694]
[1737597913398,0.11935553,102590.0,102580.0,4.43151694]
[1737597913602,0.04912474,102590.0,102580.0,4.47867622]
[1737597913799,0.04912474,102590.0,102580.0,4.35832893]
[1737597914000,0.04912474,102590.0,102580.0,4.28116965]
[1737597914533,0.04912474,102590.0,102580.0,4.34107711]
[1737597914741,0.04912474,102590.0,102580.0,4.12107711]
[1737597914888,0.04912474,102590.0,102580.0,4.14107711]
[1737597915091,0.14647203,102590.0,102580.0,2.81207711]
[1737597915326,0.14647203,102590.0,102580.0,1.41636965]
[1737597915534,0.09734729,102590.0,102580.0,2.43952565]
[1737597915733,0.09734729,102600.0,102590.0,0.389873]
[1737597915996,0.09734729,102600.0,102590.0,2.081609]
[1737597916191,0.38975729,102600.0,102590.0,2.081609]
[1737597916617,0.38975729,102600.0,102590.0,0.442409]
[1737597916832,0.38975729,102600.0,102590.0,1.363109]
[1737597917031,0.48722229,102600.0,102590.0,0.824]
[1737597917281,0.662475,102590.0,102580.0,0.0001479]
[1737597917485,1.05223229,102590.0,102580.0,0.0001479]
[1737597917837,1.04468391,102590.0,102580.0,0.0001479]
[1737597918439,1.17198391,102590.0,102580.0,0.0001479]
[1737597918882,0.023,102580.0,102550.0,0.292523]
[1737597919037,0.38983729,102570.0,102550.0,0.29302882]
[1737597919243,0.68224729,102570.0,102560.0,0.15]
[1737597919638,1.22424729,102570.0,102560.0,0.15]
[1737597920179,1.22424729,102570.0,102550.0,0.48805282]
[1737597920379,0.639503,102560.0,102550.0,0.00050582]
[1737597920598,0.92422029,102560.0,102550.0,0.00050582]
[1737597920813,0.99422029,102560.0,102550.0,0.00050582]
[1737597921100,0.962235,102530.0,102510.0,0.292634]
[1737597921406,0.73688829,102520.0,102510.0,0.247551]
[1737597921625,0.63934729,102520.0,102510.0,0.097551]
[1737597921925,0.93175729,102520.0,102510.0,0.097551]
[1737597922138,0.93175729,102520.0,102510.0,0.247551]
[1737597922566,0.38975729,102520.0,102500.0,0.09784524]
[1737597922749,0.542,102510.0,102500.0,0.09785124]
[1737597922984,0.93175729,102510.0,102500.0,0.09785124]
[1737597923398,0.93175729,102510.0,102500.0,1.06785124]
[1737597923620,0.93175729,102510.0,102500.0,0.53885124]
[1737597923833,0.29241,102510.0,102500.0,0.53885124]
[1737597924372,0.29241,102510.0,102500.0,0.55885124]
[1737597924797,0.29241,102510.0,102500.0,0.24785124]
[1737597925004,0.29241,102510.0,102500.0,1.21395124]
[1737597925270,0.38975729,102510.0,102500.0,0.55475124]
[1737597925795,0.38975729,102510.0,102500.0,0.24785124]
[1737597926138,0.38975729,102510.0,102500.0,0.71635124]
[1737597926363,0.38975729,102510.0,102500.0,0.36055124]
[1737597926561,0.38975729,102510.0,102500.0,0.35115124]
[1737597927443,0.38975729,102510.0,102500.0,0.24785124]
[1737597927646,0.38975729,102510.0,102500.0,0.64455124]
[1737597928036,0.38975729,102510.0,102500.0,0.52295124]
[1737597928206,0.29241,102510.0,102500.0,0.54233689]
[1737597928826,0.38975729,102510.0,102500.0,0.52295124]
[1737597929026,0.47135729,102510.0,102500.0,0.00029124]
[1737597929245,0.47135729,102510.0,102500.0,0.09785124]
[1737597929446,1.01335729,102510.0,102500.0,0.09785124]
[1737597929611,1.01335729,102510.0,102500.0,0.24785124]
[1737597929808,1.01335729,102510.0,102500.0,0.51083689]
[1737597930215,0.93175729,102510.0,102500.0,0.51083689]
[1737597930621,0.93175729,102510.0,102500.0,1.56393689]
[1737597930845,0.93175729,102510.0,102500.0,1.54455124]
[1737597931290,0.93175729,102510.0,102500.0,0.86429124]
[1737597931501,0.93175729,102510.0,102500.0,0.26723689]
[1737597931773,0.93175729,102510.0,102500.0,0.16967689]
[1737597932491,0.93175729,102510.0,102500.0,0.26723689]
[1737597932875,0.65910794,102510.0,102500.0,0.00029124]
[1737597933080,0.65910794,102510.0,102460.0,0.487971]
[1737597933081,0.097575,102490.0,102460.0,0.487971]
[1737597933308,0.17894729,102480.0,102460.0,0.48811955]
[1737597933502,0.47135729,102480.0,102470.0,0.15]
[1737597933751,0.56893729,102480.0,102470.0,0.15]
[1737597933928,0.56893729,102480.0,102460.0,0.00014855]
[1737597933929,0.097589,102470.0,102460.0,0.00014855]
[1737597934285,0.51034629,102470.0,102460.0,0.00014855]
[1737597934615,0.61194629,102470.0,102460.0,0.00014855]
[1737597934820,0.59194629,102470.0,102460.0,0.00014855]
[1737597935402,0.47135729,102470.0,102460.0,0.00014855]
[1737597935864,0.47135729,102470.0,102460.0,0.09774755]
[1737597936176,0.47135729,102470.0,102460.0,0.24774755]
[1737597936396,0.47135729,102470.0,102460.0,2.84554755]
[1737597937050,0.47135729,102470.0,102460.0,0.24774755]
[1737597937252,0.47135729,102470.0,102460.0,2.86094755]
[1737597937453,1.13394629,102470.0,102460.0,0.00014855]
[1737597938438,1.13320891,102470.0,102460.0,0.00014855]
[1737597938635,1.13320891,102470.0,102460.0,0.00029075]
[1737597938917,0.56820891,102470.0,102460.0,0.00029075]
[1737597939218,0.64120891,102470.0,102460.0,0.00029075]
[1737597939472,0.66120891,102470.0,102460.0,0.00029075]
[1737597940225,0.64120891,102470.0,102460.0,0.00029075]
[1737597940425,0.66120891,102470.0,102460.0,0.00029075]
[1737597943573,0.66120891,102470.0,102440.0,0.0001424]
[1737597943574,0.2549,102460.0,102440.0,0.0001424]
[1737597943878,0.2549,102460.0,102400.0,0.097654]
[1737597943879,0.292888,102430.0,102400.0,0.097654]
[1737597944089,0.19498429,102420.0,102410.0,0.0005052]
[1737597944263,0.52283429,102420.0,102410.0,0.0005052]
[1737597945169,0.42519729,102420.0,102410.0,0.0005052]
[1737597945399,0.52283429,102420.0,102410.0,0.0005052]
[1737597946161,0.42519729,102420.0,102410.0,0.0005052]
[1737597946359,0.52283429,102420.0,102410.0,0.0005052]
[1737597946565,0.51039429,102420.0,102410.0,0.0005052]
[1737597946764,0.52283429,102420.0,102410.0,0.0005052]
[1737597946964,0.42519729,102420.0,102410.0,0.0005052]
[1737597947168,0.38975729,102420.0,102410.0,0.0005052]
[1737597947368,0.38975729,102420.0,102410.0,0.0981512]
[1737597949015,0.38975729,102420.0,102410.0,0.26753685]
[1737597950808,0.29241,102420.0,102410.0,5.31753685]
[1737597950981,0.29241,102420.0,102410.0,3.73413685]
[1737597951187,0.29241,102420.0,102410.0,1.50423685]
[1737597951356,0.38975729,102420.0,102410.0,0.61203685]
[1737597951577,0.38975729,102420.0,102410.0,0.2482934]
[1737597952167,0.38975729,102420.0,102410.0,0.26767905]
[1737597953860,0.38975729,102420.0,102410.0,0.2482934]
[1737597954396,0.93175729,102420.0,102410.0,0.2482934]
[1737597954611,0.38975729,102420.0,102410.0,0.2482934]
[1737597955054,0.95475729,102420.0,102410.0,0.0006474]
[1737597955269,0.41275729,102420.0,102410.0,0.0982934]
[1737597955460,0.95475729,102420.0,102410.0,0.0982934]
[1737597956295,0.38975729,102420.0,102410.0,0.0982934]
[1737597958723,0.41275729,102420.0,102410.0,0.0006474]
[1737597958926,0.58949429,102420.0,102410.0,0.0006474]
[1737597960529,0.60949429,102420.0,102410.0,0.0006474]
[1737597960734,0.63649429,102420.0,102410.0,0.0006474]
[1737597961133,0.65949429,102420.0,102410.0,0.0006474]
[1737597961457,0.65949429,102420.0,102390.0,0.0001425]
[1737597961458,0.226756,102400.0,102390.0,0.0001425]
[1737597961659,0.226756,102400.0,102390.0,0.00029063]
[1737597961660,0.70911329,102400.0,102390.0,0.00029063]
[1737597961803,0.65911329,102400.0,102390.0,0.00029063]
[1737597962004,0.65911329,102400.0,102360.0,0.02541383]
[1737597962005,0.097684,102370.0,102360.0,0.02541383]
[1737597962207,0.40219729,102370.0,102360.0,0.10798584]
[1737597962594,0.40219729,102370.0,102360.0,0.01029184]
[1737597962800,0.40219729,102370.0,102360.0,0.10798584]
[1737597963003,0.38975729,102370.0,102360.0,0.10798584]
[1737597963846,0.38975729,102370.0,102360.0,0.01029184]
[1737597964044,0.48744129,102370.0,102360.0,0.01029184]
[1737597964250,0.51044129,102370.0,102360.0,0.01029184]
[1737597964564,0.53044129,102370.0,102360.0,0.01029184]
[1737597965317,0.64858129,102370.0,102360.0,0.01029184]
[1737597965998,0.61858129,102370.0,102360.0,0.01029184]
[1737597966412,0.66858129,102370.0,102360.0,0.01029184]
[1737597966810,0.61858129,102370.0,102360.0,0.01029184]
[1737597967027,0.47789729,102370.0,102360.0,0.01029184]
[1737597967420,1.00725729,102370.0,102360.0,0.10798584]
[1737597967774,0.93175729,102370.0,102360.0,0.10798584]
[1737597968181,0.38975729,102370.0,102360.0,2.71216269]
[1737597968384,0.38975729,102370.0,102360.0,2.71118584]
[1737597968786,0.38975729,102370.0,102360.0,2.48148584]
[1737597969048,0.38975729,102370.0,102360.0,2.09277149]
[1737597969283,0.38975729,102370.0,102360.0,1.02318584]
[1737597970051,0.38975729,102370.0,102360.0,0.25798584]